{"text_format":"1","workbook":"xlsx","n_sheets":1,"sheets":["Sheet1"],"not_rendered":{"charts":0,"images":0,"macros":1,"external_links":0,"defined_names":0,"comments":0,"pivot_tables":0},"unopened":[],"bounds":{"document_bytes":16777216,"sheet_cells":100000,"rows_first":2000,"rows_last":500,"rows_between":2000,"halvings":0,"cell_chars":16384,"cell_head_chars":4096},"cells_cut":0,"cells_raw":0,"read":"whole","date_system":"1900"}

{"sheet":"Sheet1","index":0,"n_rows":99,"n_cols":2,"rows_kept":99,"cut":false,"hidden":false,"merged":[]}
[]
["待翻译内容","翻译结果"]
["后顶灯灯泡(10W12V)",{"$f":"_xll.BaiduFanyiByWebBrowser(A3,\"zh\",\"en\")","v":" Rear dome lamp bulb (10W12V) \r\n"}]
["转向灯灯泡(PY21W 12V)",{"$f":"_xll.BaiduFanyiByWebBrowser(A4,\"zh\",\"en\")","v":" S4ga3. B engine assembly (2.0 / OBD / six teeth \r\n"}]
["后雾灯灯泡(P21W 12V)",{"$f":"_xll.BaiduFanyiByWebBrowser(A5,\"zh\",\"en\")","v":" Front dome lamp bulb (12V10W) \r\n"}]
["后位灯灯泡（R5W 12V）",{"$f":"_xll.BaiduFanyiByWebBrowser(A6,\"zh\",\"en\")","v":" Rear position lamp bulb (r5w 12V) \r\n"}]
["中顶灯灯泡(10W12V)",{"$f":"_xll.BaiduFanyiByWebBrowser(A7,\"zh\",\"en\")","v":" Front dome lamp bulb (12V10W) \r\n"}]
["牌照灯灯泡（W5W12V)",{"$f":"_xll.BaiduFanyiByWebBrowser(A8,\"zh\",\"en\")","v":" Front dome lamp bulb (12V10W) \r\n"}]
["圆锥滚子轴承（输出轴后）",{"$f":"_xll.BaiduFanyiByWebBrowser(A9,\"zh\",\"en\")","v":" Front dome lamp bulb (12V10W) \r\n"}]
["圆锥滚子轴承（输出轴前）",{"$f":"_xll.BaiduFanyiByWebBrowser(A10,\"zh\",\"en\")","v":" Tapered roller bearing (front of output shaft) \r\n"}]
["差速器轴承",{"$f":"_xll.BaiduFanyiByWebBrowser(A11,\"zh\",\"en\")","v":" Differential bearing \r\n"}]
["主齿内轴承",{"$f":"_xll.BaiduFanyiByWebBrowser(A12,\"zh\",\"en\")","v":" Inner bearing of driving gear \r\n"}]
["前顶灯灯泡（12V 10W）",{"$f":"_xll.BaiduFanyiByWebBrowser(A13,\"zh\",\"en\")","v":" Front dome lamp bulb (12V 10W) \r\n"}]
["闷盖",{"$f":"_xll.BaiduFanyiByWebBrowser(A14,\"zh\",\"en\")","v":" Cover up \r\n"}]
["M8螺母",{"$f":"_xll.BaiduFanyiByWebBrowser(A15,\"zh\",\"en\")","v":" M8 nut \r\n"}]
["线管",{"$f":"_xll.BaiduFanyiByWebBrowser(A16,\"zh\",\"en\")","v":" Front dome lamp bulb (12V10W) \r\n"}]
["线管",{"$f":"_xll.BaiduFanyiByWebBrowser(A17,\"zh\",\"en\")","v":" Front dome lamp bulb (12V10W) \r\n"}]
["线夹",{"$f":"_xll.BaiduFanyiByWebBrowser(A18,\"zh\",\"en\")","v":" clamp \r\n"}]
["车门开关",{"$f":"_xll.BaiduFanyiByWebBrowser(A19,\"zh\",\"en\")","v":" Front dome lamp bulb (12V10W) \r\n"}]
["车门开关",{"$f":"_xll.BaiduFanyiByWebBrowser(A20,\"zh\",\"en\")","v":" Front dome lamp bulb (12V10W) \r\n"}]
["手柄总成",{"$f":"_xll.BaiduFanyiByWebBrowser(A21,\"zh\",\"en\")","v":" Handle assembly \r\n"}]
["汽油滤清器卡箍",{"$f":"_xll.BaiduFanyiByWebBrowser(A22,\"zh\",\"en\")","v":" Front dome lamp bulb (12V10W) \r\n"}]
["O型密封圈",{"$f":"_xll.BaiduFanyiByWebBrowser(A23,\"zh\",\"en\")","v":" O-ring \r\n"}]
["后轮毂轴承",{"$f":"_xll.BaiduFanyiByWebBrowser(A24,\"zh\",\"en\")","v":" Front dome lamp bulb (12V10W) \r\n"}]
["轮胎螺栓",{"$f":"_xll.BaiduFanyiByWebBrowser(A25,\"zh\",\"en\")","v":" Tire bolt \r\n"}]
["轮胎螺栓",{"$f":"_xll.BaiduFanyiByWebBrowser(A26,\"zh\",\"en\")","v":" Tire bolt \r\n"}]
["主齿凸缘螺母",{"$f":"_xll.BaiduFanyiByWebBrowser(A27,\"zh\",\"en\")","v":" Main gear flange nut \r\n"}]
["控制器总成",{"$f":"_xll.BaiduFanyiByWebBrowser(A28,\"zh\",\"en\")","v":" Controller assembly \r\n"}]
["尾门密封条",{"$f":"_xll.BaiduFanyiByWebBrowser(A29,\"zh\",\"en\")","v":" Front dome lamp bulb (12V10W) \r\n"}]
["弃用件",{"$f":"_xll.BaiduFanyiByWebBrowser(A30,\"zh\",\"en\")","v":" Discarded parts \r\n"}]
["前顶灯灯泡(12V10W）",{"$f":"_xll.BaiduFanyiByWebBrowser(A31,\"zh\",\"en\")","v":" Front dome lamp bulb (12V10W) \r\n"}]
["半轴R004（28齿",{"$f":"_xll.BaiduFanyiByWebBrowser(A32,\"zh\",\"en\")","v":" Axle shaft R004 (28 teeth \r\n"}]
["半轴R002-B",{"$f":"_xll.BaiduFanyiByWebBrowser(A33,\"zh\",\"en\")","v":" Front dome lamp bulb (12V10W) \r\n"}]
["轨压传感器",{"$f":"_xll.BaiduFanyiByWebBrowser(A34,\"zh\",\"en\")","v":" Front dome lamp bulb (12V10W) \r\n"}]
["轮胎气压标签",{"$f":"_xll.BaiduFanyiByWebBrowser(A35,\"zh\",\"en\")","v":" Tire pressure label \r\n"}]
["2吨级液压千斤顶",{"$f":"_xll.BaiduFanyiByWebBrowser(A36,\"zh\",\"en\")","v":" 2 ton hydraulic jack \r\n"}]
["千斤顶总成（四驱",{"$f":"_xll.BaiduFanyiByWebBrowser(A37,\"zh\",\"en\")","v":" Jack assembly (4WD \r\n"}]
["手柄总成",{"$f":"_xll.BaiduFanyiByWebBrowser(A38,\"zh\",\"en\")","v":" Handle assembly \r\n"}]
["千斤顶垫片",{"$f":"_xll.BaiduFanyiByWebBrowser(A39,\"zh\",\"en\")","v":" Jack gasket \r\n"}]
["工具包（千斤顶回力杆）",{"$f":"_xll.BaiduFanyiByWebBrowser(A40,\"zh\",\"en\")","v":" Front dome lamp bulb (12V10W) \r\n"}]
["三角警告牌",{"$f":"_xll.BaiduFanyiByWebBrowser(A41,\"zh\",\"en\")","v":" Warning triangle \r\n"}]
["工具包含工具总成",{"$f":"_xll.BaiduFanyiByWebBrowser(A42,\"zh\",\"en\")","v":" The tool contains the tool assembly \r\n"}]
["随车工具",{"$f":"_xll.BaiduFanyiByWebBrowser(A43,\"zh\",\"en\")","v":" On board tools \r\n"}]
["随车工具包",{"$f":"_xll.BaiduFanyiByWebBrowser(A44,\"zh\",\"en\")","v":" Front dome lamp bulb (12V10W) \r\n"}]
["随车工具包总成",{"$f":"_xll.BaiduFanyiByWebBrowser(A45,\"zh\",\"en\")","v":" Tool kit assembly \r\n"}]
["轮胎螺母扳手总成",{"$f":"_xll.BaiduFanyiByWebBrowser(A46,\"zh\",\"en\")","v":" Tire nut wrench assembly \r\n"}]
["千斤顶固定螺栓总成",{"$f":"_xll.BaiduFanyiByWebBrowser(A47,\"zh\",\"en\")","v":" Jack fixing bolt assembly \r\n"}]
["工具盒含三角警告牌总成",{"$f":"_xll.BaiduFanyiByWebBrowser(A48,\"zh\",\"en\")","v":" Tool box with triangle warning board assembly \r\n"}]
["灭火器总成",{"$f":"_xll.BaiduFanyiByWebBrowser(A49,\"zh\",\"en\")","v":" Fire extinguisher assembly \r\n"}]
["燃油计量单元",{"$f":"_xll.BaiduFanyiByWebBrowser(A50,\"zh\",\"en\")","v":" Front dome lamp bulb (12V10W) \r\n"}]
["油底壳衬垫(AT)(同OK01519396）",{"$f":"_xll.BaiduFanyiByWebBrowser(A51,\"zh\",\"en\")","v":" Oil pan gasket (at) (same as ok01519396) \r\n"}]
["车速表轴副接合套筒总成（AT）",{"$f":"_xll.BaiduFanyiByWebBrowser(A52,\"zh\",\"en\")","v":" Front dome lamp bulb (12V10W) \r\n"}]
["发动机(2.0L/抬高)",{"$f":"_xll.BaiduFanyiByWebBrowser(A53,\"zh\",\"en\")","v":" Engine (2.0L / raised) \r\n"}]
["发动机(2.0L/OBD/抬高)",{"$f":"_xll.BaiduFanyiByWebBrowser(A54,\"zh\",\"en\")","v":" Engine (2.0L / OBD / elevated) \r\n"}]
["发动机（国柴/HFC4DA1-1A）",{"$f":"_xll.BaiduFanyiByWebBrowser(A55,\"zh\",\"en\")","v":" Front dome lamp bulb (12V10W) \r\n"}]
["发动机（国柴/HFC4DA1-2B1）",{"$f":"_xll.BaiduFanyiByWebBrowser(A56,\"zh\",\"en\")","v":" Engine (guochai / hfc4da1-2b1) \r\n"}]
["HFC4DB1.2C柴油发动机",{"$f":"_xll.BaiduFanyiByWebBrowser(A57,\"zh\",\"en\")","v":" Front dome lamp bulb (12V10W) \r\n"}]
["发动机总成（2.4NA）",{"$f":"_xll.BaiduFanyiByWebBrowser(A58,\"zh\",\"en\")","v":" Front dome lamp bulb (12V10W) \r\n"}]
["发动机总成",{"$f":"_xll.BaiduFanyiByWebBrowser(A59,\"zh\",\"en\")","v":" Engine assembly \r\n"}]
["发动机(2.4L)",{"$f":"_xll.BaiduFanyiByWebBrowser(A60,\"zh\",\"en\")","v":" Engine (2.4L) \r\n"}]
["发动机总成（2.0/配六齿）",{"$f":"_xll.BaiduFanyiByWebBrowser(A61,\"zh\",\"en\")","v":" Front dome lamp bulb (12V10W) \r\n"}]
["发动机总成(OBD/四驱)",{"$f":"_xll.BaiduFanyiByWebBrowser(A62,\"zh\",\"en\")","v":" Front dome lamp bulb (12V10W) \r\n"}]
["发动机总成(OBD/两驱)",{"$f":"_xll.BaiduFanyiByWebBrowser(A63,\"zh\",\"en\")","v":" Engine assembly (OBD / 2WD) \r\n"}]
["宾悦2.4发动机总成",{"$f":"_xll.BaiduFanyiByWebBrowser(A64,\"zh\",\"en\")","v":" Binyue 2.4 engine assembly \r\n"}]
["SRV4GA3-1发动机总成(2.0L)",{"$f":"_xll.BaiduFanyiByWebBrowser(A65,\"zh\",\"en\")","v":" Srv4ga3-1 engine assembly (2.0L) \r\n"}]
["SRV4GA3.B发动机总成(2.0/OBD)",{"$f":"_xll.BaiduFanyiByWebBrowser(A66,\"zh\",\"en\")","v":" Front dome lamp bulb (12V10W) \r\n"}]
["S4GA3.B发动机总成(2.0/OBD/六齿",{"$f":"_xll.BaiduFanyiByWebBrowser(A67,\"zh\",\"en\")","v":" S4ga3. B engine assembly (2.0 / OBD / six teeth \r\n"}]
["SRV发动机总成（2.0/配六齿）",{"$f":"_xll.BaiduFanyiByWebBrowser(A68,\"zh\",\"en\")","v":" Front dome lamp bulb (12V10W) \r\n"}]
["4EA3.D发动机总成",{"$f":"_xll.BaiduFanyiByWebBrowser(A69,\"zh\",\"en\")","v":" Front dome lamp bulb (12V10W) \r\n"}]
["发动机总成(4GA4.C发动机)",{"$f":"_xll.BaiduFanyiByWebBrowser(A70,\"zh\",\"en\")","v":" Engine assembly (4ga4. C engine) \r\n"}]
["发动机总成(4GA4.C发动机)",{"$f":"_xll.BaiduFanyiByWebBrowser(A71,\"zh\",\"en\")","v":" Engine assembly (4ga4. C engine) \r\n"}]
["发动机(2.0L)",{"$f":"_xll.BaiduFanyiByWebBrowser(A72,\"zh\",\"en\")","v":" Front dome lamp bulb (12V10W) \r\n"}]
["发动机(2.0L/OBD)",{"$f":"_xll.BaiduFanyiByWebBrowser(A73,\"zh\",\"en\")","v":" Front dome lamp bulb (12V10W) \r\n"}]
["SRV4GA3.C发动机总成(2.0/OBD)",{"$f":"_xll.BaiduFanyiByWebBrowser(A74,\"zh\",\"en\")","v":" Srv4ga3. C engine assembly (2.0 / OBD) \r\n"}]
["发动机总成（2.0国IV）",{"$f":"_xll.BaiduFanyiByWebBrowser(A75,\"zh\",\"en\")","v":" Engine assembly (2.0 country IV) \r\n"}]
["发动机总成",{"$f":"_xll.BaiduFanyiByWebBrowser(A76,\"zh\",\"en\")","v":" Engine assembly \r\n"}]
["发动机总成",{"$f":"_xll.BaiduFanyiByWebBrowser(A77,\"zh\",\"en\")","v":" Engine assembly \r\n"}]
["发动机总成",{"$f":"_xll.BaiduFanyiByWebBrowser(A78,\"zh\",\"en\")","v":" Engine assembly \r\n"}]
["发动机总成(国Ⅳ/1.3)",{"$f":"_xll.BaiduFanyiByWebBrowser(A79,\"zh\",\"en\")","v":" Engine assembly (GB IV / 1.3) \r\n"}]
["A0发动机(4EB13D)",{"$f":"_xll.BaiduFanyiByWebBrowser(A80,\"zh\",\"en\")","v":" A0 engine (4eb13d) \r\n"}]
["发动机总成(国Ⅳ/1.3)",{"$f":"_xll.BaiduFanyiByWebBrowser(A81,\"zh\",\"en\")","v":" Engine assembly (GB IV / 1.3) \r\n"}]
["发动机总成（国Ⅳ/1.3）巴西备件",{"$f":"_xll.BaiduFanyiByWebBrowser(A82,\"zh\",\"en\")","v":" Front dome lamp bulb (12V10W) \r\n"}]
["发动机总成(4GB3.3C)",{"$f":"_xll.BaiduFanyiByWebBrowser(A83,\"zh\",\"en\")","v":" Engine assembly (4gb3.3c) \r\n"}]
["发动机总成(4GB3.3C)",{"$f":"_xll.BaiduFanyiByWebBrowser(A84,\"zh\",\"en\")","v":" Engine assembly (4gb3.3c) \r\n"}]
["发动机总成",{"$f":"_xll.BaiduFanyiByWebBrowser(A85,\"zh\",\"en\")","v":" Engine assembly \r\n"}]
["发动机总成",{"$f":"_xll.BaiduFanyiByWebBrowser(A86,\"zh\",\"en\")","v":" Engine assembly \r\n"}]
["发动机总成",{"$f":"_xll.BaiduFanyiByWebBrowser(A87,\"zh\",\"en\")","v":" Engine assembly \r\n"}]
["发动机总成",{"$f":"_xll.BaiduFanyiByWebBrowser(A88,\"zh\",\"en\")","v":" Engine assembly \r\n"}]
["发动机总成",{"$f":"_xll.BaiduFanyiByWebBrowser(A89,\"zh\",\"en\")","v":" Engine assembly \r\n"}]
["发动机总成",{"$f":"_xll.BaiduFanyiByWebBrowser(A90,\"zh\",\"en\")","v":" Engine assembly \r\n"}]
["发动机总成",{"$f":"_xll.BaiduFanyiByWebBrowser(A91,\"zh\",\"en\")","v":" Engine assembly \r\n"}]
["发动机总成",{"$f":"_xll.BaiduFanyiByWebBrowser(A92,\"zh\",\"en\")","v":" Engine assembly \r\n"}]
["发动机总成CVT",{"$f":"_xll.BaiduFanyiByWebBrowser(A93,\"zh\",\"en\")","v":" Engine assembly CVT \r\n"}]
["发动机总成MT",{"$f":"_xll.BaiduFanyiByWebBrowser(A94,\"zh\",\"en\")","v":" Engine assembly MT \r\n"}]
["发动机总成",{"$f":"_xll.BaiduFanyiByWebBrowser(A95,\"zh\",\"en\")","v":" Engine assembly \r\n"}]
["发动机总成",{"$f":"_xll.BaiduFanyiByWebBrowser(A96,\"zh\",\"en\")","v":" Engine assembly \r\n"}]
["发动机总成(4GB3.3C)",{"$f":"_xll.BaiduFanyiByWebBrowser(A97,\"zh\",\"en\")","v":" Engine assembly (4gb3.3c) \r\n"}]
["发动机总成",{"$f":"_xll.BaiduFanyiByWebBrowser(A98,\"zh\",\"en\")","v":" Engine assembly \r\n"}]
["发动机总成(4GA4.D发动机)",{"$f":"_xll.BaiduFanyiByWebBrowser(A99,\"zh\",\"en\")","v":" Engine assembly (4ga4. D engine) \r\n"}]